bitfinex/quotes_BTCUSD_20260117
["timestamp","ask_amount","ask_price","bid_price","bid_amount"]
[1768671595273,4.94e-05,95398.0,95396.0,0.05241309]
[1768671597167,4.94e-05,95398.0,95396.0,0.05241308]
[1768671597391,4.94e-05,95398.0,95397.0,0.05241254]
[1768671600712,4.94e-05,95398.0,95395.0,0.01048272]
[1768671600850,4.94e-05,95398.0,95396.0,0.0524126]
[1768671601271,4.94e-05,95398.0,95397.0,0.05241254]
[1768671603212,0.12704,95405.0,95400.0,0.05241038]
[1768671603421,0.13752163,95405.0,95399.0,0.0628936]
[1768671603640,0.13752163,95405.0,95401.0,0.05241033]
[1768671604009,0.01048086,95412.0,95404.0,0.01048174]
[1768671604223,0.06288568,95412.0,95407.0,0.01043608]
[1768671604414,0.01048108,95410.0,95406.0,0.01048152]
[1768671604615,0.01048108,95410.0,95405.0,0.01048163]
[1768671604850,0.01048119,95409.0,95405.0,0.01048163]
[1768671605287,0.01048108,95410.0,95406.0,0.01048152]
[1768671605510,0.01048119,95409.0,95405.0,0.01048163]
[1768671605947,0.06288714,95409.0,95404.0,0.01048174]
[1768671606363,0.01048119,95409.0,95403.0,0.01048185]
[1768671606581,0.01048119,95409.0,95405.0,0.01048163]
[1768671607697,0.01048108,95410.0,95406.0,0.01048152]
[1768671608748,0.01048108,95410.0,95407.0,0.01048141]
[1768671609723,0.01048097,95411.0,95407.0,0.01043608]
[1768671610742,0.01048097,95411.0,95406.0,0.06288909]
[1768671610743,0.01048119,95409.0,95406.0,0.01048152]
[1768671610954,0.01048119,95409.0,95404.0,0.01048174]
[1768671611361,0.0104813,95408.0,95404.0,0.01048174]
[1768671611685,0.01048119,95409.0,95405.0,0.01048163]
[1768671612092,0.01048119,95409.0,95406.0,0.01048152]
[1768671612311,0.01052833,95409.0,95406.0,0.01048152]
[1768671613837,0.01052833,95409.0,95405.0,0.06288969]
[1768671613838,0.0104813,95408.0,95404.0,0.01048174]
[1768671614074,0.0104813,95408.0,95405.0,0.01048163]
[1768671614316,0.01052833,95409.0,95405.0,0.01048163]
[1768671614594,0.01052833,95409.0,95405.0,0.06288976]
[1768671614798,4.714e-05,95409.0,95405.0,0.01048163]
[1768671616238,0.05245336,95409.0,95405.0,0.01048163]
[1768671616464,0.06293455,95409.0,95405.0,0.01048163]
[1768671617474,0.0104813,95408.0,95404.0,0.01048174]
[1768671618129,0.01052833,95409.0,95405.0,0.01048163]
[1768671618311,0.01052833,95409.0,95405.0,0.06288975]
[1768671618516,0.01052833,95409.0,95406.0,0.01048152]
[1768671618959,4.714e-05,95409.0,95406.0,0.06288912]
[1768671619161,0.01052833,95409.0,95404.0,0.01048174]
[1768671619544,0.06293447,95409.0,95404.0,0.01048174]
[1768671620388,4.714e-05,95409.0,95405.0,0.01048163]
[1768671621224,4.714e-05,95409.0,95406.0,0.06288871]
[1768671621622,4.714e-05,95409.0,95406.0,0.01048152]
[1768671622767,4.714e-05,95409.0,95407.0,0.05240704]
[1768671622967,4.714e-05,95409.0,95407.0,0.05232873]
[1768671624825,4.714e-05,95409.0,95406.0,0.06288909]
[1768671625182,4.714e-05,95409.0,95407.0,0.05240701]
[1768671626529,4.714e-05,95409.0,95408.0,0.0524065]
[1768671626735,4.714e-05,95409.0,95406.0,0.01048152]
[1768671626934,4.714e-05,95409.0,95405.0,0.01048163]
[1768671627531,0.0104813,95408.0,95404.0,0.01048174]
[1768671628208,4.714e-05,95409.0,95405.0,0.01048163]
[1768671628609,4.714e-05,95409.0,95406.0,0.01048152]
[1768671630534,4.714e-05,95409.0,95407.0,0.05240705]
[1768671631318,4.714e-05,95409.0,95408.0,0.0524065]
[1768671631903,4.714e-05,95409.0,95406.0,0.01048152]
[1768671632123,4.714e-05,95409.0,95406.0,0.06288905]
[1768671632331,4.714e-05,95409.0,95407.0,0.05240702]
[1768671632729,4.714e-05,95409.0,95406.0,0.06288906]
[1768671633319,0.01052833,95409.0,95405.0,0.01048163]
[1768671633522,0.06288785,95408.0,95404.0,0.01048174]
[1768671633999,0.01048152,95406.0,95401.0,0.01048207]
[1768671634200,0.01048152,95406.0,95402.0,0.01048196]
[1768671635907,0.01048152,95406.0,95402.0,0.00848196]
[1768671638985,0.01048152,95406.0,95402.0,0.06089173]
[1768671639165,0.01048152,95406.0,95403.0,0.01048185]
[1768671639362,0.01048141,95407.0,95403.0,0.01048185]
[1768671639533,0.01052833,95409.0,95406.0,0.01048152]
[1768671645077,0.0104813,95408.0,95405.0,0.01048163]
[1768671646595,0.01052833,95409.0,95405.0,0.01048163]
[1768671647363,0.01052833,95409.0,95406.0,0.01048152]
[1768671647960,0.01052833,95409.0,95405.0,0.01048163]
[1768671648109,0.0104813,95408.0,95403.0,0.01048185]
[1768671648530,0.0104813,95408.0,95404.0,0.01048174]
[1768671651463,0.01048141,95407.0,95403.0,0.01048185]
[1768671652907,0.01048152,95406.0,95402.0,0.00848196]
[1768671653253,0.01048141,95407.0,95403.0,0.01048185]
[1768671654429,0.0628887,95407.0,95403.0,0.01048185]
[1768671654572,0.06288848,95407.0,95403.0,0.01048185]
[1768671655544,0.01048152,95406.0,95403.0,0.01048185]
[1768671657492,0.06288849,95407.0,95403.0,0.01048185]
[1768671658815,0.01048141,95407.0,95403.0,0.01048185]
[1768671659458,0.01048141,95407.0,95403.0,0.0628911]
[1768671659617,0.01048141,95407.0,95404.0,0.01048174]
[1768671661080,0.01048152,95406.0,95401.0,0.01048207]
[1768671661282,0.06288966,95406.0,95401.0,0.01048207]
[1768671661481,0.01048163,95405.0,95402.0,0.01048196]
[1768671662314,0.01048152,95406.0,95403.0,0.01048185]
[1768671663392,0.01048152,95406.0,95402.0,0.01048196]
[1768671663625,0.06288928,95406.0,95402.0,0.01048196]
[1768671664029,0.01048152,95406.0,95402.0,0.01048196]
[1768671664395,0.01048152,95406.0,95403.0,0.01048185]
[1768671665014,0.01048152,95406.0,95402.0,0.01048196]
[1768671665248,0.01048174,95404.0,95400.0,0.01048218]
[1768671666263,0.01048174,95404.0,95400.0,0.06289296]
[1768671666787,0.01048163,95405.0,95401.0,0.06289227]
[1768671667623,0.01048163,95405.0,95402.0,0.01048196]
[1768671667824,0.01048152,95406.0,95402.0,0.01048196]
[1768671669495,0.01048163,95405.0,95402.0,0.01048196]
[1768671669975,0.01048196,95402.0,95398.0,0.214665]
[1768671670197,0.01048185,95403.0,95400.0,0.01048218]
[1768671670798,0.01048152,95406.0,95402.0,0.01048196]
[1768671671614,0.01048152,95406.0,95403.0,0.01048185]
[1768671672098,0.0628878,95408.0,95403.0,0.01048185]
[1768671672326,0.0104813,95408.0,95404.0,0.01048174]
[1768671672738,0.0104813,95408.0,95403.0,0.01048185]
[1768671672739,0.06288848,95407.0,95403.0,0.01048185]
[1768671672954,0.06288848,95407.0,95402.0,0.06289167]
[1768671673170,0.01048163,95405.0,95401.0,0.00906452]
[1768671673374,0.06288982,95405.0,95401.0,0.00906452]
[1768671673583,0.01048163,95405.0,95401.0,0.00906452]
[1768671675045,0.01048163,95405.0,95401.0,0.06147484]
[1768671675281,0.01048163,95405.0,95402.0,0.01048196]
[1768671676938,0.06288857,95407.0,95402.0,0.06289171]
[1768671677703,0.01048152,95406.0,95402.0,0.01048196]
[1768671678989,0.01048163,95405.0,95401.0,0.00906452]
[1768671679187,0.01048174,95404.0,95401.0,0.00906452]
[1768671679462,0.0628905,95404.0,95400.0,0.01048218]
[1768671680562,0.06289267,95401.0,95398.0,0.2041826]
[1768671680791,0.01048207,95401.0,95398.0,0.2041826]
[1768671681469,0.01048218,95400.0,95396.0,0.22970879]
[1768671681670,0.01048218,95400.0,95396.0,0.28212182]
[1768671681830,0.01048218,95400.0,95396.0,0.22970879]
[1768671682035,0.01048218,95400.0,95396.0,0.22951201]
[1768671682483,0.01048207,95401.0,95397.0,0.0104825]
[1768671683332,0.01048218,95400.0,95397.0,0.0104825]
[1768671684274,0.01048196,95402.0,95398.0,0.0104824]
[1768671685635,0.01048185,95403.0,95399.0,0.01048229]
[1768671687255,0.06288948,95406.0,95399.0,0.01048229]
[1768671687256,0.01048163,95405.0,95401.0,0.01048207]
[1768671687620,0.01048174,95404.0,95401.0,0.01048207]
[1768671687826,0.01048174,95404.0,95400.0,0.01048218]
[1768671688043,0.06289045,95404.0,95400.0,0.01048218]
[1768671689889,0.01048174,95404.0,95400.0,0.01048218]
[1768671690379,0.01048174,95404.0,95400.0,0.06289307]
[1768671691136,0.01048174,95404.0,95400.0,0.01048218]
[1768671691722,0.01048185,95403.0,95399.0,0.01048229]
[1768671693309,0.01048196,95402.0,95399.0,0.01048229]
[1768671693468,0.01048196,95402.0,95398.0,0.0104824]
[1768671693674,0.01048196,95402.0,95398.0,0.01028561]
[1768671694088,0.01048185,95403.0,95399.0,0.01048229]
[1768671695621,0.06289115,95403.0,95399.0,0.01048229]
[1768671696852,0.01048185,95403.0,95399.0,0.01048229]
[1768671698589,0.01048174,95404.0,95400.0,0.01048218]
[1768671702162,0.01048163,95405.0,95401.0,0.01048207]
[1768671702385,0.06288979,95405.0,95401.0,0.01048207]
[1768671703596,0.01048174,95404.0,95401.0,0.01048207]
[1768671704297,0.01048174,95404.0,95400.0,0.01048218]
[1768671705333,0.01048163,95405.0,95401.0,0.01048207]
[1768671705533,0.01048174,95404.0,95401.0,0.01048207]
[1768671708189,0.0628905,95404.0,95400.0,0.01048218]
[1768671708678,0.01048185,95403.0,95400.0,0.01048218]
[1768671710460,0.06289122,95403.0,95399.0,0.01048229]
[1768671710619,0.01048185,95403.0,95399.0,0.01048229]
[1768671713952,0.0628912,95403.0,95399.0,0.01048229]
[1768671714618,0.06289193,95402.0,95398.0,0.01028561]
[1768671715025,0.01048218,95400.0,95397.0,0.0104825]
[1768671715224,0.0104824,95398.0,95395.0,0.12704]
[1768671715801,0.0104824,95398.0,95395.0,0.13752272]
[1768671716431,0.0104824,95398.0,95395.0,0.13732592]
[1768671717863,0.01048229,95399.0,95395.0,0.13732592]
[1768671718289,0.0104824,95398.0,95395.0,0.13732592]
[1768671718438,0.01048207,95401.0,95395.0,0.13732592]
[1768671718632,0.01048218,95400.0,95396.0,0.01048261]
[1768671718841,0.06289324,95400.0,95396.0,0.01048261]
[1768671719037,0.01048218,95400.0,95395.0,0.13732592]
[1768671719415,0.01048218,95400.0,95396.0,0.01048261]
[1768671719633,0.01048229,95399.0,95395.0,0.13732592]
[1768671720784,0.0104824,95398.0,95395.0,0.1268432]
[1768671721004,0.01048316,95391.0,95386.0,0.01048371]
[1768671721206,0.0104836,95387.0,95384.0,0.02821728]
[1768671721430,0.01048393,95384.0,95381.0,0.02821728]
[1768671721639,0.01048404,95383.0,95380.0,0.0001594]
[1768671722254,0.01048448,95379.0,95375.0,0.01048492]
[1768671722405,0.01048459,95378.0,95374.0,0.01048503]
[1768671722617,0.22796756,95377.0,95374.0,0.01048503]
[1768671723260,0.21748286,95375.0,95371.0,0.0001594]
[1768671723427,0.21748286,95375.0,95372.0,0.01048525]
[1768671725039,0.22796778,95375.0,95371.0,0.01069416]
[1768671726221,0.28039262,95375.0,95371.0,0.0002088]
[1768671726367,0.22796778,95375.0,95371.0,0.0002088]
[1768671726588,0.21748286,95373.0,95370.0,0.01048547]
[1768671726823,0.21748286,95373.0,95370.0,0.01061399]
[1768671727978,0.21748286,95373.0,95370.0,0.01056866]
[1768671728296,0.227968,95373.0,95369.0,0.01048558]
[1768671729145,0.227968,95373.0,95369.0,0.01028877]
[1768671729569,0.01048525,95372.0,95353.0,0.36500392]
[1768671729782,0.22796822,95371.0,95366.0,0.01048591]
[1768671729997,0.01048547,95370.0,95366.0,0.01048591]
[1768671730206,0.22796833,95370.0,95365.0,0.01048602]
[1768671730417,0.22796833,95370.0,95366.0,0.01028913]
[1768671732963,0.22796833,95370.0,95365.0,0.01048602]
[1768671732964,0.22796844,95369.0,95365.0,0.01048602]
[1768671733156,0.22796844,95369.0,95366.0,0.01048591]
[1768671733356,0.21748286,95369.0,95366.0,0.01048591]
[1768671733481,0.01048536,95371.0,95368.0,0.01048569]
[1768671733688,0.01048536,95371.0,95368.0,0.01044037]
[1768671734046,0.01048525,95372.0,95369.0,0.01048558]
[1768671734919,0.01048536,95371.0,95367.0,0.0104858]
[1768671735249,0.01048525,95372.0,95368.0,0.01048569]
[1768671735627,0.01048525,95372.0,95368.0,0.01044037]
[1768671737905,0.01048525,95372.0,95369.0,0.01048558]
[1768671738897,0.06291095,95373.0,95369.0,0.01048558]
[1768671739109,0.01048525,95372.0,95369.0,0.01048558]
[1768671741259,0.01048536,95371.0,95366.0,0.01048591]
[1768671741398,0.06291269,95371.0,95366.0,0.01048591]
[1768671741794,0.05242748,95370.0,95366.0,0.01048591]
[1768671742137,0.01048591,95366.0,95362.0,0.01048635]
[1768671742743,0.01048591,95366.0,95362.0,0.06291811]
[1768671743383,0.01048602,95365.0,95362.0,0.01048635]
[1768671744044,0.0104858,95367.0,95364.0,0.01048613]
[1768671745202,0.01048569,95368.0,95364.0,0.01048613]
[1768671745978,0.0629143,95368.0,95364.0,0.01048613]
[1768671747207,0.0104858,95367.0,95364.0,0.01048613]
[1768671747414,0.0104858,95367.0,95363.0,0.01048624]
[1768671747753,0.01048591,95366.0,95361.0,0.01064586]
[1768671748095,0.01048602,95365.0,95362.0,0.01048635]
[1768671748921,0.01048602,95365.0,95361.0,0.01064586]
[1768671748922,0.01048602,95365.0,95361.0,0.0001594]
[1768671749121,0.06291624,95365.0,95361.0,0.0001594]
[1768671749321,0.01048602,95365.0,95361.0,0.01064586]
[1768671749532,0.01048613,95364.0,95361.0,0.01064586]
[1768671749722,0.01048602,95365.0,95361.0,0.01064586]
[1768671749879,0.01048602,95365.0,95361.0,0.06307808]
[1768671750250,0.01048613,95364.0,95361.0,0.0001594]
[1768671751189,0.01048613,95364.0,95361.0,0.01064586]
[1768671751394,0.01048602,95365.0,95361.0,0.01064586]
[1768671752312,0.01048602,95365.0,95362.0,0.01048635]
[1768671755542,0.0104858,95367.0,95362.0,0.06291767]
[1768671755750,0.01048591,95366.0,95362.0,0.01048635]
[1768671757458,0.0104858,95367.0,95363.0,0.01048624]
[1768671758198,0.01048591,95366.0,95363.0,0.01048624]
[1768671758402,0.0104858,95367.0,95363.0,0.01048624]
[1768671760247,0.01048591,95366.0,95363.0,0.01048624]
[1768671764460,0.06291553,95366.0,95362.0,0.01048635]
[1768671764749,0.01048591,95366.0,95362.0,0.01048635]
[1768671765353,0.01048602,95365.0,95362.0,0.01048635]
[1768671766122,0.01048613,95364.0,95361.0,0.01064586]
[1768671766691,0.01048613,95364.0,95361.0,0.0001594]
[1768671767914,0.01048613,95364.0,95361.0,0.00011408]
[1768671768720,0.01048613,95364.0,95361.0,0.01060054]
[1768671769297,0.00628608,95364.0,95361.0,0.01060054]
[1768671770950,0.01048602,95365.0,95362.0,0.01048635]
[1768671771334,0.01048602,95365.0,95362.0,0.01044103]
[1768671771819,0.01048602,95365.0,95361.0,0.01060054]
[1768671772167,0.0104858,95367.0,95362.0,0.01048635]
[1768671772363,0.01048591,95366.0,95363.0,0.01048624]
[1768671774917,0.01048602,95365.0,95362.0,0.01048635]
[1768671776130,0.01048602,95365.0,95361.0,0.01060054]
[1768671776265,0.01048602,95365.0,95361.0,0.06303279]
[1768671777126,0.01048602,95365.0,95361.0,0.00011408]
[1768671777317,0.01048602,95365.0,95361.0,0.01060054]
[1768671779281,0.00637703,95365.0,95361.0,0.01060054]
[1768671779779,0.01048613,95364.0,95361.0,0.00011408]
[1768671780808,0.01048613,95364.0,95361.0,0.01060054]
[1768671781878,0.24438419,95364.0,95361.0,0.00011408]
[1768671782034,0.01048624,95363.0,95356.0,0.01048701]
[1768671782238,0.01048624,95363.0,95356.0,0.01095905]
[1768671782420,0.01048624,95363.0,95360.0,0.01048657]
[1768671784065,0.01048613,95364.0,95360.0,0.01048657]
[1768671784660,0.01048613,95364.0,95360.0,0.06291943]
[1768671785278,0.00637703,95365.0,95361.0,0.06291856]
[1768671785482,0.13756569,95368.0,95362.0,0.01048635]
[1768671785678,0.13756569,95368.0,95363.0,0.05243116]
[1768671786252,0.13756569,95368.0,95363.0,0.0629174]
[1768671786782,0.18999422,95368.0,95363.0,0.0629174]
[1768671787777,0.0104858,95367.0,95363.0,0.01048624]
[1768671788699,0.01048558,95369.0,95365.0,0.01048602]
[1768671789053,0.01048569,95368.0,95364.0,0.01048613]
[1768671791288,0.06291418,95368.0,95364.0,0.01048613]
[1768671791682,0.01048569,95368.0,95364.0,0.01048613]
[1768671791887,0.01048569,95368.0,95365.0,0.01048602]
[1768671792087,0.01048547,95370.0,95366.0,0.01048591]
[1768671792525,0.01048547,95370.0,95366.0,0.06291545]
[1768671793162,0.01048558,95369.0,95365.0,0.01048602]
[1768671796638,0.01048569,95368.0,95364.0,0.01048613]
[1768671796839,0.06291424,95368.0,95364.0,0.01048613]
[1768671797174,0.01048569,95368.0,95364.0,0.01048613]
[1768671798125,0.01048547,95370.0,95365.0,0.01048602]
[1768671798403,0.06291354,95369.0,95365.0,0.01048602]
[1768671798642,0.01048569,95368.0,95364.0,0.01048613]
[1768671798980,0.0104858,95367.0,95362.0,0.01048635]
[1768671799180,0.0104858,95367.0,95363.0,0.01048624]
[1768671799381,0.0104858,95367.0,95363.0,0.06291742]
[1768671799605,0.01048558,95369.0,95365.0,0.01048602]
[1768671801426,0.01048547,95370.0,95366.0,0.01048591]
[1768671803182,0.01048547,95370.0,95367.0,0.0104858]
[1768671803744,0.01048547,95370.0,95366.0,0.06291547]
[1768671804151,0.01048547,95370.0,95367.0,0.0104858]
[1768671804661,0.01048558,95369.0,95366.0,0.01048591]
[1768671805517,0.01048569,95368.0,95365.0,0.01048602]
[1768671806277,0.01048558,95369.0,95366.0,0.01048591]
[1768671806656,0.0629144,95368.0,95363.0,0.01048624]
[1768671806887,0.0629144,95368.0,95363.0,0.0629174]
[1768671807890,0.01048569,95368.0,95364.0,0.01048613]
[1768671808741,0.0104858,95367.0,95361.0,0.01048646]
[1768671809013,0.0524296,95366.0,95361.0,0.06291871]
[1768671809234,0.0524296,95366.0,95360.0,0.01048657]
[1768671809235,0.01048613,95364.0,95360.0,0.01048657]
[1768671809435,0.01048602,95365.0,95361.0,0.01048646]
[1768671809579,0.01048591,95366.0,95362.0,0.01048635]
[1768671810031,0.01048602,95365.0,95362.0,0.01048635]
[1768671811717,0.01048624,95363.0,95360.0,0.01048657]
[1768671813171,0.01048613,95364.0,95360.0,0.06291934]
[1768671813329,0.01048613,95364.0,95360.0,0.01048657]
[1768671814781,0.06291691,95364.0,95360.0,0.01048657]
[1768671815310,0.06291691,95364.0,95360.0,0.01044125]
[1768671817583,0.03906064,95364.0,95360.0,0.01044125]
[1768671818284,0.0629176,95363.0,95358.0,0.01048679]
[1768671818544,0.01048624,95363.0,95358.0,0.01048679]
[1768671818803,0.01048624,95363.0,95359.0,0.06291983]
[1768671818993,0.01048624,95363.0,95359.0,0.01048668]
[1768671819148,0.01048624,95363.0,95359.0,0.06292001]
[1768671819347,0.01048624,95363.0,95360.0,0.01048657]
[1768671819644,0.01048613,95364.0,95361.0,0.01048646]
[1768671819809,0.01048602,95365.0,95361.0,0.06287339]
[1768671820008,0.01048602,95365.0,95361.0,0.01044114]
[1768671820211,0.01048602,95365.0,95361.0,0.06287337]
[1768671821738,0.01048602,95365.0,95361.0,0.01044114]
[1768671822857,0.01048602,95365.0,95361.0,0.01039582]
[1768671823687,0.01048602,95365.0,95361.0,0.06282808]
[1768671823977,0.06291618,95365.0,95361.0,0.01039582]
[1768671824184,0.01048613,95364.0,95361.0,0.01039582]
[1768671825031,0.01048613,95364.0,95360.0,0.01048657]
[1768671825032,0.01048624,95363.0,95360.0,0.01048657]
[1768671826143,0.01048602,95365.0,95361.0,0.01048646]
[1768671827153,0.01048602,95365.0,95361.0,0.06291879]
[1768671828151,0.01048613,95364.0,95361.0,0.01048646]
[1768671828350,0.00693936,95364.0,95361.0,0.01048646]
[1768671829067,0.01048624,95363.0,95360.0,0.01048657]
[1768671830949,0.00693936,95364.0,95360.0,0.01048657]
[1768671834580,0.01048624,95363.0,95360.0,0.01048657]
[1768671836369,0.00472,95363.0,95360.0,0.01048657]
[1768671836578,0.00693936,95364.0,95360.0,0.01048657]
[1768671837279,0.01048624,95363.0,95360.0,0.01048657]
[1768671837475,0.00693936,95364.0,95360.0,0.01048657]
[1768671840125,0.00693936,95364.0,95361.0,0.01048646]
[1768671841383,0.01048602,95365.0,95361.0,0.06291855]
[1768671841559,0.01048591,95366.0,95362.0,0.06291806]
[1768671841758,0.01048591,95366.0,95362.0,0.01048635]
[1768671843495,0.01048591,95366.0,95362.0,0.06291811]
[1768671844827,0.01048591,95366.0,95363.0,0.01048624]
[1768671845028,0.05242864,95368.0,95363.0,0.01048624]
[1768671845029,0.01048569,95368.0,95363.0,0.06291722]
[1768671845443,0.06291424,95368.0,95363.0,0.01048624]
[1768671846782,0.06291424,95368.0,95363.0,0.06291744]
[1768671847280,0.01048569,95368.0,95364.0,0.06291679]
[1768671848446,0.01048569,95368.0,95364.0,0.01048613]
[1768671849395,0.06291426,95368.0,95364.0,0.01048613]
[1768671849977,0.0104858,95367.0,95364.0,0.01048613]
[1768671852581,0.0104858,95367.0,95363.0,0.01048624]
[1768671852787,0.01048591,95366.0,95363.0,0.01048624]
[1768671856297,0.0104858,95367.0,95363.0,0.01048624]
[1768671857562,0.0104858,95367.0,95363.0,0.06291731]
[1768671857785,0.0104858,95367.0,95364.0,0.01048613]
[1768671859124,0.01048558,95369.0,95365.0,0.01048602]
[1768671859273,0.01048569,95368.0,95365.0,0.01048602]
[1768671861637,0.01048558,95369.0,95365.0,0.01048602]
[1768671861786,0.01048558,95369.0,95365.0,0.06291612]
[1768671861982,0.13756536,95371.0,95366.0,0.01048591]
[1768671862232,0.13756536,95371.0,95366.0,0.06291548]
[1768671863374,0.13756536,95371.0,95367.0,0.0104858]
[1768671863584,0.12708,95371.0,95368.0,0.01048569]
[1768671864269,0.12708,95371.0,95368.0,0.06291408]
[1768671864731,0.12708,95371.0,95368.0,0.01048569]
[1768671864963,0.12708,95371.0,95370.0,0.05242738]
[1768671866769,0.01048481,95376.0,95372.0,0.01048525]
[1768671867130,0.01048448,95379.0,95376.0,0.01048481]
[1768671867349,0.01048426,95381.0,95365.0,0.19828941]
[1768671867350,0.12708,95378.0,95365.0,0.20877543]
[1768671867567,0.01048481,95376.0,95373.0,0.01048514]
[1768671868214,0.01048481,95376.0,95372.0,0.01048525]
[1768671868377,0.01048492,95375.0,95372.0,0.01048525]
[1768671868580,0.01048492,95375.0,95371.0,0.01048536]
[1768671869419,0.12708,95374.0,95370.0,0.05242712]
[1768671869614,0.12708,95374.0,95368.0,0.01048569]
[1768671869615,0.12708,95374.0,95369.0,0.05242748]
[1768671870380,0.01048514,95373.0,95369.0,0.01048558]
[1768671872338,0.01024654,95373.0,95369.0,0.01048558]
[1768671873522,0.01024654,95373.0,95370.0,0.01048547]
[1768671873724,0.13756503,95374.0,95370.0,0.06291283]
[1768671873926,0.12708,95374.0,95371.0,0.01048536]
[1768671875395,0.12708,95374.0,95371.0,0.06291206]
[1768671876165,0.12708,95374.0,95371.0,0.01048536]
[1768671877354,0.12708,95374.0,95371.0,0.06291219]
[1768671877558,0.13756503,95374.0,95371.0,0.01048536]
[1768671878129,0.0001594,95404.0,95383.0,0.20960811]
[1768671878285,0.0001594,95414.0,95405.0,0.05240814]
[1768671878286,0.01048086,95412.0,95405.0,0.05240814]
[1768671878485,0.0001594,95414.0,95409.0,0.05240542]
[1768671878688,0.12708,95417.0,95415.0,0.05240266]
[1768671878935,0.12708,95417.0,95414.0,0.01048064]
[1768671879527,0.01048042,95416.0,95412.0,0.01048086]
[1768671879722,0.01048042,95416.0,95410.0,0.01048108]
[1768671879949,0.01048064,95414.0,95410.0,0.01048108]
[1768671880110,0.01048075,95413.0,95409.0,0.01048119]
[1768671880307,0.05240272,95415.0,95408.0,0.0104813]
[1768671880308,0.01048086,95412.0,95408.0,0.0104813]
[1768671880602,0.01048075,95413.0,95409.0,0.01048119]
[1768671880858,0.01048086,95412.0,95402.0,0.20960811]
[1768671881057,0.01048075,95413.0,95409.0,0.01048119]
[1768671881486,0.01039022,95412.0,95409.0,0.01048119]
[1768671882289,0.01048075,95413.0,95409.0,0.01048119]
[1768671883947,0.01048108,95410.0,95405.0,0.01048163]
[1768671884145,0.12704,95409.0,95405.0,0.01048163]
[1768671884357,0.01048141,95407.0,95403.0,0.01048185]
[1768671885168,0.01048141,95407.0,95403.0,0.00984363]
[1768671885758,0.01048152,95406.0,95402.0,0.01048196]
[1768671887053,0.01048141,95407.0,95403.0,0.01048185]
[1768671887248,0.01048141,95407.0,95404.0,0.01048174]
[1768671887452,0.0104813,95408.0,95405.0,0.01048163]
[1768671889541,0.13752119,95409.0,95405.0,0.01048163]
[1768671890142,0.0104813,95408.0,95405.0,0.01048163]
[1768671891089,0.13752119,95409.0,95404.0,0.01048174]
[1768671891405,0.12704,95409.0,95405.0,0.01048163]
[1768671891930,0.12704,95409.0,95406.0,0.01048152]
[1768671892792,0.12704,95409.0,95406.0,0.06288898]
[1768671893948,0.12704,95409.0,95406.0,0.01048152]
[1768671894397,0.12704,95409.0,95406.0,0.06288878]
[1768671895626,0.12704,95409.0,95406.0,0.01048152]
[1768671900403,0.13752119,95409.0,95405.0,0.01048163]
[1768671901422,0.13752119,95409.0,95404.0,0.01048174]
[1768671901554,0.01048152,95406.0,95397.0,0.05241254]
[1768671901755,0.01048152,95406.0,95401.0,0.06289238]
[1768671902437,0.01048294,95393.0,95390.0,0.0001962]
[1768671902596,0.01048261,95396.0,95390.0,0.01067947]
[1768671902597,0.01048272,95395.0,95390.0,0.01067947]
[1768671902798,0.01048272,95395.0,95391.0,0.01048316]
[1768671902992,0.01048272,95395.0,95392.0,0.01048305]
[1768671903459,0.01048261,95396.0,95392.0,0.06289834]
[1768671903832,0.01048261,95396.0,95393.0,0.01048294]
[1768671906355,0.0104825,95397.0,95393.0,0.01048294]
[1768671907321,0.0104825,95397.0,95394.0,0.02252898]
[1768671907530,0.0104825,95397.0,95395.0,0.02252898]
[1768671907731,0.0104825,95397.0,95393.0,0.01048294]
[1768671908046,0.0104825,95397.0,95394.0,0.02252904]
[1768671908249,0.0104825,95397.0,95395.0,0.02252904]
[1768671908454,0.0104825,95397.0,95393.0,0.01048294]
[1768671908455,0.0104825,95397.0,95396.0,0.02252904]
[1768671909899,0.0104825,95397.0,95396.0,0.01866267]
[1768671910107,0.0104825,95397.0,95396.0,0.01350751]
[1768671910325,0.01048218,95400.0,95396.0,0.02399012]
[1768671910528,0.01048218,95400.0,95397.0,0.0104825]
[1768671910739,0.12704,95401.0,95398.0,0.00851961]
[1768671910944,0.13752207,95401.0,95397.0,0.0104825]
[1768671911370,0.13752207,95401.0,95398.0,0.0104824]
[1768671911568,0.12704,95401.0,95398.0,0.0104824]
[1768671912434,0.12704,95401.0,95397.0,0.0104825]
[1768671912435,0.13752207,95401.0,95397.0,0.0104825]
[1768671912643,0.01048218,95400.0,95397.0,0.0104825]
[1768671915923,0.13752207,95401.0,95397.0,0.0104825]
[1768671916956,0.13752207,95401.0,95398.0,0.0104824]
[1768671917566,0.18993247,95401.0,95397.0,0.0104825]
[1768671917765,0.18993247,95401.0,95395.0,0.01048272]
[1768671917766,0.06289358,95400.0,95395.0,0.01048272]
[1768671917987,0.01048218,95400.0,95396.0,0.01048261]
[1768671918840,0.06289317,95400.0,95396.0,0.01048261]
[1768671919048,0.01048218,95400.0,95396.0,0.01048261]
[1768671919251,0.01048229,95399.0,95396.0,0.01048261]
[1768671920589,0.01048218,95400.0,95396.0,0.01048261]
[1768671921587,0.13752207,95401.0,95397.0,0.0104825]
[1768671921991,0.13752207,95401.0,95398.0,0.02255085]
[1768671922235,0.13752207,95401.0,95399.0,0.02255085]
[1768671922447,0.13752207,95401.0,95397.0,0.0104825]
[1768671922655,0.13752207,95401.0,95398.0,0.02255171]
[1768671922801,0.13752207,95401.0,95399.0,0.02255171]
[1768671923004,0.13752207,95401.0,95397.0,0.0104825]
[1768671923234,0.13752207,95401.0,95398.0,0.03303411]
[1768671923451,0.13752207,95401.0,95399.0,0.02255171]
[1768671923663,0.01048218,95400.0,95396.0,0.01048261]
[1768671923864,0.01048218,95400.0,95397.0,0.02255268]
[1768671924091,0.01048218,95400.0,95398.0,0.02255268]
[1768671924305,0.01048218,95400.0,95399.0,0.02255268]
[1768671925057,0.01048218,95400.0,95396.0,0.01048261]
[1768671925387,0.01048229,95399.0,95396.0,0.01048261]
[1768671926779,0.06289374,95399.0,95395.0,0.01048272]
[1768671926914,0.01048229,95399.0,95395.0,0.06289629]
[1768671927494,0.01048229,95399.0,95396.0,0.01048261]
[1768671928507,0.01048229,95399.0,95394.0,0.06289693]
[1768671928508,0.0104824,95398.0,95394.0,0.01048283]
[1768671929021,0.01048229,95399.0,95395.0,0.01048272]
[1768671930577,0.06289392,95399.0,95395.0,0.01048272]
[1768671930776,0.01048218,95400.0,95396.0,0.01048261]
[1768671930986,0.01048218,95400.0,95396.0,0.06289566]
[1768671931191,0.01048218,95400.0,95397.0,0.0104825]
[1768671931384,0.13752207,95401.0,95397.0,0.06289502]
[1768671931950,0.13752207,95401.0,95397.0,0.0104825]
[1768671932157,0.01048218,95400.0,95397.0,0.0104825]
[1768671932412,0.01048218,95400.0,95396.0,0.01048261]
[1768671933000,0.06289312,95400.0,95396.0,0.01048261]
[1768671934486,0.06289312,95400.0,95395.0,0.01048272]
[1768671934487,0.06289378,95399.0,95395.0,0.01048272]
[1768671934951,0.01048229,95399.0,95395.0,0.06289624]
[1768671935148,0.01048229,95399.0,95395.0,0.01048272]
[1768671935293,0.01048229,95399.0,95395.0,0.06289625]
[1768671935494,0.01048229,95399.0,95395.0,0.01048272]